fUST/lending_fUST_20250704
["ID","MTS","AMOUNT","RATE_DAILY","PERIOD"]
[369535812,1751610642702,-1085.39,0.00016438,2]
[369535814,1751610642712,-460.0,0.00016438,2]
[369535816,1751610642722,-460.0,0.00016438,2]
[369535818,1751610642731,-642.57,0.00016438,2]
[369535820,1751610642741,-539.60873008,0.00016438,2]
[369535822,1751610642750,-460.0,0.00016438,2]
[369535824,1751610642759,-2310.56,0.00016438,2]
[369535826,1751610642769,-500.0,0.00016438,2]
[369535828,1751610642779,-1399.79,0.00016438,2]
[369535830,1751610642789,-460.0,0.00016438,2]
[369535832,1751610642798,-460.0,0.00016438,2]
[369535834,1751610642808,-460.0,0.00016438,2]
[369535836,1751610642818,-3032.06,0.00016438,2]
[369535838,1751610642827,-465.4558412,0.00016438,2]
[369535840,1751610642838,-460.0,0.00016438,2]
[369535842,1751610642848,-397.94177096,0.00016438,2]
[369535844,1751610642858,-460.0,0.00016438,2]
[369535846,1751610642867,-460.0,0.00016438,2]
[369535848,1751610642877,-460.0,0.00016438,2]
[369535850,1751610642886,-460.0,0.00016438,2]
[369535852,1751610642895,-1136.97,0.00016438,2]
[369535854,1751610642905,-460.0,0.00016438,2]
[369535856,1751610642915,-150.77258577,0.00016438,2]
[369535858,1751610642924,-460.0,0.00016438,2]
[369535860,1751610642933,-501.46424297,0.00016438,2]
[369535862,1751610642943,-460.0,0.00016438,2]
[369535864,1751610642952,-460.0,0.00016438,2]
[369535866,1751610642961,-460.0,0.00016438,2]
[369535868,1751610642971,-411.41,0.00016438,2]
[369535870,1751610642980,-460.0,0.00016438,2]
[369535872,1751610642989,-460.0,0.00016438,2]
[369535874,1751610642999,-915.55,0.00016438,2]
[369535876,1751610643008,-460.0,0.00016438,2]
[369535878,1751610643018,-502.76863937,0.00016438,2]
[369535880,1751610643027,-460.0,0.00016438,2]
[369535882,1751610643039,-429.94241859,0.00016438,2]
[369535884,1751610643048,-460.0,0.00016438,2]
[369535886,1751610643058,-460.0,0.00016438,2]
[369535888,1751610643067,-460.0,0.00016438,2]
[369535890,1751610643076,-460.0,0.00016438,2]
[369535892,1751610643086,-591.79,0.00016438,2]
[369535894,1751610643095,-733.28,0.00016438,2]
[369535896,1751610643105,-460.0,0.00016438,2]
[369535898,1751610643115,-1025.02,0.00016438,2]
[369535900,1751610643124,-460.0,0.00016438,2]
[369535902,1751610643133,-460.0,0.00016438,2]
[369535903,1751610643143,-460.0,0.00016438,2]
[369535905,1751610643152,-460.0,0.00016438,2]
[369535906,1751610643162,-460.0,0.00016438,2]
[369535907,1751610643171,-460.0,0.00016438,2]
[369535908,1751610643180,-460.0,0.00016438,2]
[369535909,1751610643190,-460.0,0.00016438,2]
[369535910,1751610643199,-460.0,0.00016438,2]
[369535911,1751610643208,-460.0,0.00016438,2]
[369535912,1751610643217,-460.0,0.00016438,2]
[369535913,1751610643226,-460.0,0.00016438,2]
[369535914,1751610643235,-460.0,0.00016438,2]
[369535915,1751610643245,-460.0,0.00016438,2]
[369535917,1751610643254,-460.0,0.00016438,2]
[369535919,1751610643263,-460.0,0.00016438,2]
[369535921,1751610643273,-460.0,0.00016438,2]
[369535923,1751610643283,-460.0,0.00016438,2]
[369535926,1751610643292,-460.0,0.00016438,2]
[369535929,1751610643302,-460.0,0.00016438,2]
[369535931,1751610643311,-460.0,0.00016438,2]
[369535932,1751610643320,-460.0,0.00016438,2]
[369535934,1751610643330,-460.0,0.00016438,2]
[369535936,1751610643340,-460.0,0.00016438,2]
[369535939,1751610643349,-460.0,0.00016438,2]
[369535942,1751610643359,-460.0,0.00016438,2]
[369535945,1751610643368,-2428.69,0.00016438,2]
[369535949,1751610643377,-579.65,0.00016438,2]
[369535952,1751610643388,-460.0,0.00016438,2]
[369535955,1751610643397,-460.0,0.00016438,2]
[369535958,1751610643407,-641.85,0.00016438,2]
[369535960,1751610643416,-460.0,0.00016438,2]
[369535962,1751610643427,-1540.69,0.00016438,2]
[369535964,1751610643436,-500.0,0.00016438,2]
[369535966,1751610643447,-2027.7,0.00016438,2]
[369535968,1751610643457,-460.0,0.00016438,2]
[369535970,1751610643466,-500.0,0.00016438,2]
[369535972,1751610643475,-460.0,0.00016438,2]
[369535974,1751610643485,-151.0,0.00016438,2]
[369535976,1751610643495,-460.0,0.00016438,2]
[369535978,1751610643504,-460.0,0.00016438,2]
[369535980,1751610643514,-460.0,0.00016438,2]
[369535982,1751610643524,-500.0,0.00016438,2]
[369535984,1751610643533,-460.0,0.00016438,2]
[369535986,1751610643542,-500.0,0.00016438,2]
[369535988,1751610643551,-571.99035009,0.00016438,2]
[369535990,1751610643561,-460.0,0.00016438,2]
[369535992,1751610643571,-151.0,0.00016438,2]
[369535994,1751610643583,-155.80899636,0.00016438,2]
[369535996,1751610643592,-151.0,0.00016438,2]
[369535998,1751610643601,-460.0,0.00016438,2]
[369536000,1751610643611,-460.0,0.00016438,2]
[369536002,1751610643621,-3521.4,0.00016438,2]
[369536004,1751610643630,-151.0,0.00016438,2]
[369536006,1751610643639,-292.58446115,0.00016438,2]
[369536008,1751610643649,-460.0,0.00016438,2]
[369536010,1751610643659,-500.0,0.00016438,2]
[369536012,1751610643669,-460.0,0.00016438,2]
[369536014,1751610643678,-474.67,0.00016438,2]
[369536016,1751610643687,-460.0,0.00016438,2]
[369536018,1751610643696,-836.63,0.00016438,2]
[369536020,1751610643706,-460.0,0.00016438,2]
[369536022,1751610643715,-460.0,0.00016438,2]
[369536024,1751610643724,-460.0,0.00016438,2]
[369536026,1751610643734,-460.0,0.00016438,2]
[369536028,1751610643743,-461.0258678,0.00016438,2]
[369536030,1751610643752,-460.0,0.00016438,2]
[369536032,1751610643762,-460.0,0.00016438,2]
[369536034,1751610643771,-151.0,0.00016438,2]
[369536036,1751610643780,-531.31,0.00016438,2]
[369536038,1751610643790,-460.0,0.00016438,2]
[369536040,1751610643799,-460.0,0.00016438,2]
[369536042,1751610643809,-460.0,0.00016438,2]
[369536044,1751610643818,-688.65,0.00016438,2]
[369536046,1751610643827,-1712.11,0.00016438,2]
[369536047,1751610643836,-460.0,0.00016438,2]
[369536049,1751610643846,-556.69760239,0.00016438,2]
[369536051,1751610643855,-460.0,0.00016438,2]
[369536053,1751610643864,-460.0,0.00016438,2]
[369536055,1751610643874,-482.41798699,0.00016438,2]
[369536057,1751610643883,-460.0,0.00016438,2]
[369536059,1751610643892,-500.0,0.00016438,2]
[369536061,1751610643901,-460.0,0.00016438,2]
[369536063,1751610643911,-1571.35,0.00016438,2]
[369536065,1751610643920,-461.23521377,0.00016438,2]
[369536067,1751610643929,-1631.94,0.00016438,2]
[369536069,1751610643938,-460.0,0.00016438,2]
[369536071,1751610643947,-460.0,0.00016438,2]
[369536073,1751610643956,-460.0,0.00016438,2]
[369536075,1751610643966,-1223.8,0.00016438,2]
[369536077,1751610643975,-460.0,0.00016438,2]
[369536079,1751610643984,-460.0,0.00016438,2]
[369536082,1751610643994,-460.0,0.00016438,2]
[369536085,1751610644003,-460.0,0.00016438,2]
[369536087,1751610644012,-460.0,0.00016438,2]
[369536089,1751610644021,-460.0,0.00016438,2]
[369536092,1751610644030,-460.0,0.00016438,2]
[369536095,1751610644039,-460.0,0.00016438,2]
[369536097,1751610644048,-460.0,0.00016438,2]
[369536099,1751610644057,-460.0,0.00016438,2]
[369536101,1751610644066,-460.0,0.00016438,2]
[369536103,1751610644076,-460.0,0.00016438,2]
[369536105,1751610644085,-460.0,0.00016438,2]
[369536107,1751610644095,-460.0,0.00016438,2]
[369536109,1751610644105,-460.0,0.00016438,2]
[369536111,1751610644114,-460.0,0.00016438,2]
[369536113,1751610644123,-460.0,0.00016438,2]
[369536115,1751610644133,-460.0,0.00016438,2]
[369536117,1751610644142,-460.0,0.00016438,2]
[369536119,1751610644151,-460.0,0.00016438,2]
[369536121,1751610644161,-460.0,0.00016438,2]
[369536123,1751610644171,-460.0,0.00016438,2]
[369536125,1751610644180,-460.0,0.00016438,2]
[369536127,1751610644189,-461.18771413,0.00016438,2]
[369536129,1751610644198,-1006.87,0.00016438,2]
[369536131,1751610644207,-460.0,0.00016438,2]
[369536133,1751610644217,-460.0,0.00016438,2]
[369536135,1751610644227,-460.0,0.00016438,2]
[369536137,1751610644236,-472.61,0.00016438,2]
[369536139,1751610644245,-460.0,0.00016438,2]
[369536141,1751610644255,-521.2,0.00016438,2]
[369536143,1751610644265,-2868.21,0.00016438,2]
[369536145,1751610644274,-460.0,0.00016438,2]
[369536147,1751610644283,-460.0,0.00016438,2]
[369536149,1751610644292,-151.0,0.00016465,2]
[369536151,1751610644302,-500.0,0.00016465,2]
[369536153,1751610644311,-500.0,0.00016465,2]
[369536155,1751610644320,-151.0,0.00016465,2]
[369536157,1751610644329,-500.0,0.00016465,2]
[369536158,1751610644338,-502.12043544,0.00016465,2]
[369536160,1751610644347,-199.24330367,0.00016465,2]
[369536162,1751610644356,-152.36852249,0.00016465,2]
[369536164,1751610644366,-151.0,0.00016465,2]
[369536166,1751610644375,-500.0,0.00016465,2]
[369536168,1751610644384,-714.05872953,0.00016469,2]
[369536170,1751610644394,-151.30931743,0.00016493,2]
[369536172,1751610644403,-502.30236165,0.00016493,2]
[369536174,1751610644413,-500.89250499,0.00016493,2]
[369536176,1751610644422,-233.58247242,0.00016493,2]
[369536178,1751610644431,-500.61666744,0.00016493,2]
[369536180,1751610644441,-151.0,0.00016493,2]
[369536182,1751610644450,-625.66499491,0.00016493,2]
[369536184,1751610644459,-151.0,0.0001652,2]
[369536186,1751610644469,-151.0,0.00016548,2]
[369536188,1751610644478,-155.99335727,0.00016575,2]
[369536190,1751610644487,-500.0,0.00016674,2]
[369536192,1751610644497,-714.05872953,0.00016699,2]
[369536194,1751610644506,-460.0,0.00016712,2]
[369536196,1751610644514,-460.0,0.00016712,2]
[369536198,1751610644523,-460.0,0.00016712,2]
[369536200,1751610644533,-151.0,0.00016712,2]
[369536202,1751610644542,-460.0,0.00016712,2]
[369536204,1751610644551,-460.0,0.00016712,2]
[369536206,1751610644560,-460.0,0.00016712,2]
[369536208,1751610644571,-463.45,0.00016712,2]
[369536210,1751610644583,-347.66986415,0.00016712,2]
[369536212,1751610644592,-411.42051478,0.00016712,2]
[369536214,1751610644601,-223.54,0.00016712,2]
[369536216,1751610644611,-460.0,0.00016712,2]
[369536218,1751610644621,-460.0,0.00016712,2]
[369536220,1751610644630,-500.0,0.00016712,2]
[369536222,1751610644639,-460.0,0.00016712,2]
[369536224,1751610644648,-462.04179731,0.00016712,2]
[369536226,1751610644658,-460.0,0.00016712,2]
[369536228,1751610644671,-460.0,0.00016712,2]
[369536230,1751610644680,-460.0,0.00016712,2]
[369536232,1751610644689,-324.89612957,0.00016712,2]
[369536234,1751610644699,-460.0,0.00016712,2]
[369536236,1751610644708,-460.0,0.00016712,2]
[369536238,1751610644718,-540.0,0.00016712,2]
[369536240,1751610644726,-355.83161754,0.00016712,2]
[369536253,1751610644838,-460.0,0.00016712,2]
[369536255,1751610644848,-460.0,0.00016712,2]
[369536257,1751610644857,-460.0,0.00016712,2]
[369536259,1751610644866,-460.0,0.00016712,2]
[369536261,1751610644876,-460.0,0.00016712,2]
[369536262,1751610644885,-460.0,0.00016712,2]
[369536264,1751610644895,-460.0,0.00016712,2]
[369536266,1751610644904,-460.0,0.00016712,2]
[369536268,1751610644915,-460.0,0.00016712,2]
[369536270,1751610644924,-500.0,0.00016712,2]
[369536272,1751610644934,-460.0,0.00016712,2]
[369536274,1751610644943,-460.0,0.00016712,2]
[369536276,1751610644952,-380.77018478,0.00016712,2]
[369536278,1751610644962,-460.0,0.00016712,2]
[369536280,1751610644971,-460.0,0.00016712,2]
[369536282,1751610644982,-540.87567871,0.00016712,2]
[369536285,1751610644991,-460.0,0.00016712,2]
[369536286,1751610645001,-515.15,0.00016712,2]
[369536289,1751610645010,-460.0,0.00016712,2]
[369536290,1751610645020,-200.0,0.00016712,2]
[369536292,1751610645029,-543.51701396,0.00016712,2]
[369536294,1751610645038,-460.0,0.00016712,2]
[369536296,1751610645048,-460.0,0.00016712,2]
[369536298,1751610645057,-460.0,0.00016712,2]
[369536300,1751610645066,-460.0,0.00016712,2]
[369536302,1751610645076,-460.0,0.00016712,2]
[369536304,1751610645085,-460.0,0.00016712,2]
[369536306,1751610645094,-460.0,0.00016712,2]
[369536308,1751610645103,-460.0,0.00016712,2]
[369536310,1751610645112,-460.0,0.00016712,2]
[369536312,1751610645121,-460.0,0.00016712,2]
[369536314,1751610645130,-460.0,0.00016712,2]
[369536316,1751610645140,-460.0,0.00016712,2]
[369536318,1751610645150,-460.0,0.00016712,2]
[369536320,1751610645159,-460.0,0.00016712,2]
[369536322,1751610645168,-511.3460106,0.00016712,2]
[369536324,1751610645180,-460.0,0.00016712,2]
[369536326,1751610645189,-460.0,0.00016712,2]
[369536328,1751610645198,-460.0,0.00016712,2]
[369536330,1751610645208,-500.0,0.00016712,2]
[369536332,1751610645217,-449.16749657,0.00016712,2]
[369536334,1751610645227,-544.89355216,0.00016712,2]
[369536336,1751610645236,-535.43,0.00016712,2]
[369536338,1751610645245,-460.0,0.00016712,2]
[369536340,1751610645255,-487.89087882,0.00016712,2]
[369536342,1751610645264,-460.0,0.00016712,2]
[369536344,1751610645273,-614.61,0.00016712,2]
[369536346,1751610645282,-460.0,0.00016712,2]
[369536348,1751610645292,-500.0,0.00016712,2]
[369536350,1751610645301,-460.0,0.00016712,2]
[369536352,1751610645311,-460.0,0.00016712,2]
[369536354,1751610645320,-298.2921009,0.00016712,2]
[369536356,1751610645330,-460.0,0.00016712,2]
[369536358,1751610645339,-151.0,0.00016712,2]
[369536360,1751610645348,-151.0,0.00016712,2]
[369536362,1751610645358,-460.0,0.00016712,2]
[369536364,1751610645367,-180.44,0.00016712,2]
[369536366,1751610645376,-540.0,0.00016712,2]
[369536368,1751610645385,-460.0,0.00016712,2]
[369536370,1751610645394,-624.65,0.00016712,2]
[369536372,1751610645403,-460.0,0.00016712,2]
[369536374,1751610645412,-151.0,0.00016712,2]
[369536376,1751610645421,-460.0,0.00016712,2]
[369536378,1751610645430,-460.0,0.00016712,2]
[369536380,1751610645440,-151.0,0.00016712,2]
[369536382,1751610645449,-460.0,0.00016712,2]
[369536384,1751610645458,-201.744832,0.00016712,2]
[369536385,1751610645467,-250.02044508,0.00016712,2]
[369536387,1751610645476,-266.442378,0.00016712,2]
[369536390,1751610645486,-201.744832,0.00016712,2]
[369536391,1751610645495,-550.07391382,0.00016712,2]
[369536393,1751610645504,-502.72190173,0.00016712,2]
[369536395,1751610645512,-369.36986443,0.00016712,2]
[369536396,1751610645521,-460.0,0.00016712,2]
[369536397,1751610645530,-389.96063551,0.00016712,2]
[369536398,1751610645539,-460.0,0.00016712,2]
[369536399,1751610645548,-460.0,0.00016712,2]
[369536400,1751610645557,-560.60874056,0.00016712,2]
[369536401,1751610645566,-471.72,0.00016712,2]
[369536402,1751610645575,-188.241332,0.00016712,2]
[369536403,1751610645585,-460.0,0.00016712,2]
[369536404,1751610645595,-166.771041,0.00016712,2]
[369536405,1751610645604,-188.241332,0.00016712,2]
[369536406,1751610645614,-460.0,0.00016712,2]
[369536407,1751610645623,-460.0,0.00016712,2]
[369536408,1751610645632,-460.0,0.00016712,2]
[369536409,1751610645641,-540.0,0.00016712,2]
[369536410,1751610645651,-460.0,0.00016712,2]
[369536411,1751610645660,-460.0,0.00016712,2]
[369536412,1751610645670,-460.0,0.00016712,2]
[369536413,1751610645679,-151.0,0.00016712,2]
[369536414,1751610645689,-151.0,0.00016712,2]
[369536415,1751610645698,-151.0,0.00016712,2]
[369536416,1751610645707,-460.0,0.00016712,2]
[369536417,1751610645716,-258.759449,0.00016712,2]
[369536418,1751610645725,-460.0,0.00016712,2]
[369536419,1751610645734,-460.0,0.00016712,2]
[369536420,1751610645742,-541.68577503,0.00016712,2]
[369536421,1751610645751,-151.476396,0.00016712,2]
[369536422,1751610645761,-460.0,0.00016712,2]
[369536423,1751610645770,-540.0,0.00016712,2]
[369536424,1751610645780,-460.0,0.00016712,2]
[369536425,1751610645789,-460.0,0.00016712,2]
[369536426,1751610645799,-460.0,0.00016712,2]
[369536427,1751610645808,-570.45735849,0.00016712,2]
[369536428,1751610645818,-151.0,0.00016712,2]
[369536430,1751610645828,-151.0,0.00016712,2]
[369536431,1751610645838,-460.0,0.00016712,2]
[369536432,1751610645848,-695.1,0.00016712,2]
[369536434,1751610645857,-566.70916388,0.00016712,2]
[369536436,1751610645866,-401.58139365,0.00016712,2]
[369536438,1751610645875,-543.94790782,0.00016712,2]
[369536440,1751610645885,-500.0,0.00016712,2]
[369536442,1751610645894,-825.35,0.00016712,2]
[369536444,1751610645904,-460.0,0.00016712,2]
[369536446,1751610645913,-174.36272413,0.00016712,2]
[369536448,1751610645923,-460.0,0.00016712,2]
[369536450,1751610645932,-460.0,0.00016712,2]
[369536452,1751610645941,-460.0,0.00016712,2]
[369536454,1751610645951,-460.0,0.00016712,2]
[369536456,1751610645960,-511.81,0.00016712,2]
[369536458,1751610645969,-460.0,0.00016712,2]
[369536460,1751610645978,-460.0,0.00016712,2]
[369536462,1751610645988,-151.0,0.00016712,2]
[369536464,1751610645998,-491.1,0.00016712,2]
[369536466,1751610646008,-460.0,0.00016712,2]
[369536468,1751610646018,-460.0,0.00016712,2]
[369536470,1751610646028,-463.64326109,0.00016712,2]
[369536472,1751610646038,-460.0,0.00016712,2]
[369536474,1751610646047,-460.0,0.00016712,2]
[369536476,1751610646056,-1230.84,0.00016712,2]
[369536478,1751610646066,-460.0,0.00016712,2]
[369536480,1751610646075,-500.0,0.00016712,2]
[369536482,1751610646085,-460.0,0.00016712,2]
[369536484,1751610646094,-460.0,0.00016712,2]
[369536486,1751610646103,-553.03,0.00016712,2]
[369536488,1751610646115,-460.0,0.00016712,2]
[369536490,1751610646124,-531.51,0.00016712,2]
[369536492,1751610646133,-277.06957139,0.00016712,2]
[369536514,1751610646306,-70.87042861,0.00016712,2]
[369536516,1751610646317,-460.86975443,0.00016712,2]
[369536518,1751610646333,-151.0,0.00016712,2]
[369536520,1751610646352,-500.0,0.00016712,2]
[369536522,1751610646361,-151.0,0.00016712,2]
[369536524,1751610646371,-460.0,0.00016712,2]
[369536526,1751610646380,-1260.327888,0.00016712,2]
[369536528,1751610646389,-1260.327888,0.00016712,2]
[369536530,1751610646399,-460.0,0.00016712,2]
[369536532,1751610646408,-274.18788274,0.00016712,2]
[369536560,1751610646676,-185.81211726,0.00016712,2]
[369536562,1751610646685,-540.0,0.00016712,2]
[369536564,1751610646695,-354.25686238,0.00016712,2]
[369536566,1751610646706,-105.74313762,0.00016712,2]
[369536568,1751610646715,-707.39,0.00016712,2]
[369536570,1751610646724,-460.0,0.00016712,2]
[369536572,1751610646734,-460.0,0.00016712,2]
[369536574,1751610646743,-418.62,0.00016712,2]
[369536576,1751610646753,-151.0,0.00016712,2]
[369536578,1751610646762,-366.90878973,0.00016712,2]
[369536580,1751610646773,-47.51659963,0.00016712,2]
[369536582,1751610646782,-448.35213486,0.00016712,2]
[369536584,1751610646791,-460.0,0.00016712,2]
[369536585,1751610646800,-245.60907814,0.00016712,2]
[369536588,1751610646816,-1234.19092186,0.00016712,2]
[369536590,1751610646825,-151.0,0.00016712,2]
[369536592,1751610646834,-384.78025812,0.00016712,2]
[369536594,1751610646843,-460.0,0.00016712,2]
[369536597,1751610646852,-151.0,0.00016712,2]
[369536599,1751610646862,-460.0,0.00016712,2]
[369536601,1751610646871,-460.0,0.00016712,2]
[369536603,1751610646881,-460.0,0.00016712,2]
[369536605,1751610646890,-460.0,0.00016712,2]
[369536607,1751610646900,-460.0,0.00016712,2]
[369536609,1751610646910,-460.0,0.00016712,2]
[369536622,1751610647026,-566.11,0.00016712,2]
[369536624,1751610647036,-460.0,0.00016712,2]
[369536626,1751610647045,-732.66,0.00016712,2]
[369536628,1751610647054,-460.13,0.00016712,2]
[369536630,1751610647063,-851.33,0.00016712,2]
[369536633,1751610647078,-4646.14,0.00016712,2]
[369536635,1751610647086,-460.0,0.00016712,2]
[369536636,1751610647096,-280.491531,0.00016712,2]
[369536638,1751610647105,-542.19391986,0.00016712,2]
[369536641,1751610647116,-460.0,0.00016712,2]
[369536642,1751610647125,-4295.52,0.00016712,2]
[369536644,1751610647135,-502.61726036,0.00016712,2]
[369536646,1751610647144,-280.491531,0.00016712,2]
[369536648,1751610647155,-540.0,0.00016712,2]
[369536651,1751610647166,-797.23,0.00016712,2]
[369536652,1751610647176,-460.0,0.00016712,2]
[369536654,1751610647185,-460.0,0.00016712,2]
[369536657,1751610647197,-460.0,0.00016712,2]
[369536659,1751610647206,-523.74025087,0.00016712,2]
[369536661,1751610647215,-460.0,0.00016712,2]
[369536663,1751610647225,-1823.52,0.00016712,2]
[369536665,1751610647234,-1085.39,0.00016712,2]
[369536666,1751610647244,-460.0,0.00016712,2]
[369536668,1751610647254,-642.57,0.00016712,2]
[369536670,1751610647263,-374.30685836,0.00016712,2]
[369536673,1751610647275,-2310.56,0.00016712,2]
[369536674,1751610647286,-1399.79,0.00016712,2]
[369536676,1751610647296,-460.0,0.00016712,2]
[369536678,1751610647307,-460.0,0.00016712,2]
[369536680,1751610647316,-3032.06,0.00016712,2]
[369536682,1751610647325,-460.0,0.00016712,2]
[369536684,1751610647334,-151.0,0.00016712,2]
[369536686,1751610647343,-151.0,0.00016712,2]
[369536688,1751610647352,-460.0,0.00016712,2]
[369536690,1751610647362,-460.0,0.00016712,2]
[369536692,1751610647371,-460.0,0.00016712,2]
[369536694,1751610647380,-460.0,0.00016712,2]
[369536696,1751610647389,-1136.97,0.00016712,2]
[369536698,1751610647398,-460.0,0.00016712,2]
[369536701,1751610647410,-460.0,0.00016712,2]
[369536702,1751610647419,-151.0,0.00016712,2]
[369536704,1751610647428,-460.0,0.00016712,2]
[369536706,1751610647438,-151.0,0.00016712,2]
[369536709,1751610647447,-465.81277191,0.00016712,2]
[369536710,1751610647457,-460.0,0.00016712,2]
[369536712,1751610647466,-915.55,0.00016712,2]
[369536714,1751610647478,-460.0,0.00016712,2]
[369536716,1751610647487,-460.0,0.00016712,2]
[369536719,1751610647496,-460.0,0.00016712,2]
[369536720,1751610647506,-460.0,0.00016712,2]
[369536722,1751610647515,-591.79,0.00016712,2]
[369536724,1751610647525,-733.28,0.00016712,2]
[369536726,1751610647534,-1025.02,0.00016712,2]
[369536728,1751610647544,-460.0,0.00016712,2]
[369536730,1751610647553,-460.0,0.00016712,2]
[369536732,1751610647563,-460.0,0.00016712,2]
[369536735,1751610647573,-460.0,0.00016712,2]
[369536736,1751610647585,-553.95712316,0.00016712,2]
[369536738,1751610647595,-460.0,0.00016712,2]
[369536740,1751610647605,-460.0,0.00016712,2]
[369536742,1751610647615,-506.14470034,0.00016712,2]
[369536745,1751610647625,-460.0,0.00016712,2]
[369536747,1751610647634,-460.0,0.00016712,2]
[369536749,1751610647643,-460.0,0.00016712,2]
[369536751,1751610647652,-460.0,0.00016712,2]
[369536753,1751610647662,-460.0,0.00016712,2]
[369536755,1751610647671,-151.0,0.00016712,2]
[369536757,1751610647680,-460.0,0.00016712,2]
[369536759,1751610647689,-151.0,0.00016712,2]
[369536760,1751610647698,-460.0,0.00016712,2]
[369536763,1751610647708,-460.0,0.00016712,2]
[369536765,1751610647717,-561.83852671,0.00016712,2]
[369536767,1751610647727,-460.0,0.00016712,2]
[369536769,1751610647737,-460.0,0.00016712,2]
[369536771,1751610647747,-460.0,0.00016712,2]
[369536773,1751610647756,-460.0,0.00016712,2]
[369536775,1751610647765,-460.0,0.00016712,2]
[369536776,1751610647774,-579.65,0.00016712,2]
[369536778,1751610647783,-2428.69,0.00016712,2]
[369536780,1751610647793,-641.85,0.00016712,2]
[369536782,1751610647802,-1540.69,0.00016712,2]
[369536785,1751610647812,-460.0,0.00016712,2]
[369536787,1751610647821,-151.0,0.00016712,2]
[369536788,1751610647831,-2027.7,0.00016712,2]
[369536790,1751610647840,-151.0,0.00016712,2]
[369536792,1751610647850,-460.0,0.00016712,2]
[369536794,1751610647859,-465.89611115,0.00016712,2]
[369536796,1751610647869,-540.0,0.00016712,2]
[369536798,1751610647879,-460.0,0.00016712,2]
[369536800,1751610647888,-478.74392722,0.00016712,2]
[369536803,1751610647898,-3521.4,0.00016712,2]
[369536804,1751610647907,-460.0,0.00016712,2]
[369536806,1751610647917,-151.217678,0.00016712,2]
[369536808,1751610647927,-460.0,0.00016712,2]
[369536810,1751610647936,-151.0,0.00016712,2]
[369536812,1751610647946,-151.0,0.00016712,2]
[369536815,1751610647955,-460.0,0.00016712,2]
[369536816,1751610647964,-474.67,0.00016712,2]
[369536818,1751610647974,-836.63,0.00016712,2]
[369536820,1751610647983,-460.0,0.00016712,2]
[369536822,1751610647992,-460.0,0.00016712,2]
[369536824,1751610648002,-460.0,0.00016712,2]
[369536827,1751610648011,-460.0,0.00016712,2]
[369536828,1751610648020,-460.0,0.00016712,2]
[369536831,1751610648030,-193.57714833,0.00016712,2]
[369536832,1751610648040,-460.0,0.00016712,2]
[369536834,1751610648050,-531.31,0.00016712,2]
[369536836,1751610648059,-183.46305526,0.00016712,2]
[369536839,1751610648068,-460.0,0.00016712,2]
[369536840,1751610648078,-688.65,0.00016712,2]
[369536842,1751610648087,-1712.11,0.00016712,2]